bitfinex/quotes_ETHUSD_20220119
["timestamp","ask_amount","ask_price","bid_price","bid_amount"]
[1642600494287,1.6035947,3118.8,3118.7,0.00511581]
[1642600494592,0.8018047,3118.8,3118.4,0.00682108]
[1642600494787,0.80182,3118.7,3118.5,1.44035276]
[1642600494987,0.8018047,3118.8,3118.5,1.44035276]
[1642600494988,0.69355513,3118.8,3118.5,1.44035276]
[1642600495232,0.69355513,3118.8,3118.6,0.00568423]
[1642600495233,1.6036094,3118.7,3118.6,0.00568423]
[1642600495830,1.6036094,3118.7,3118.4,0.00682108]
[1642600496032,1.6036094,3118.7,3118.5,1.40640368]
[1642600496430,1.6036094,3118.7,3118.6,0.00568423]
[1642600496632,2.4054294,3118.7,3118.6,0.00568423]
[1642600497031,2.4054294,3118.7,3118.4,0.00682108]
[1642600497434,2.4054294,3118.7,3118.5,1.40625104]
[1642600497633,2.4054294,3118.7,3118.4,0.00682108]
[1642600497837,2.4054294,3118.7,3118.6,0.00568423]
[1642600498039,2.4054294,3118.7,3118.6,1.40622261]
[1642600498238,2.4054294,3118.7,3118.4,0.00682108]
[1642600498438,2.4054294,3118.7,3118.6,0.00568423]
[1642600498641,1.6036094,3118.7,3118.6,1.40515149]
[1642600498888,0.8016582,3118.9,3118.6,0.08895423]
[1642600499178,0.8016582,3118.9,3118.7,1.4102673]
[1642600499376,0.8016582,3118.9,3118.7,0.00511581]
[1642600499576,0.8016582,3118.9,3118.8,0.00454738]
[1642600499782,0.8016582,3118.9,3118.7,0.00511581]
[1642600500579,3.2282,3118.8,3118.7,0.00511581]
[1642600500782,5.6337953,3118.8,3118.3,0.0073895]
[1642600500982,5.6337953,3118.8,3118.4,1.40622274]
[1642600500983,0.80187,3118.7,3118.4,1.40622274]
[1642600501184,1.33312846,3118.6,3118.1,0.00852635]
[1642600501384,1.33312846,3118.6,3118.5,0.00625265]
[1642600501583,1.33312846,3118.6,3117.9,0.0096632]
[1642600501784,1.33312846,3118.6,3118.3,0.0073895]
[1642600501984,0.8018958,3118.5,3118.4,1.40647913]
[1642600502185,0.8018958,3118.5,3118.1,0.00852635]
[1642600502388,0.8018958,3118.5,3118.4,0.00682108]
[1642600502624,0.8018958,3118.5,3117.9,0.0096632]
[1642600502828,0.8018958,3118.5,3117.8,1.26189]
[1642600502829,0.8018958,3118.5,3118.3,0.0073895]
[1642600503033,3.630377,3118.6,3117.9,0.0096632]
[1642600503230,2.93691996,3118.6,3118.1,0.00852635]
[1642600503428,1.31586331,3118.4,3118.2,1.37276808]
[1642600503631,4.54072996,3118.6,3118.3,1.37276808]
[1642600503929,4.54072996,3118.6,3118.4,0.00682108]
[1642600503930,0.8018958,3118.5,3118.4,0.00682108]
[1642600504430,1.29,3118.9,3118.2,0.46]
[1642600504630,1.1618,3118.9,3118.3,1.37267801]
[1642600504831,1.1618,3118.9,3118.4,0.80171]
[1642600505035,1.1618,3118.9,3118.5,1.37267801]
[1642600505331,1.23226621,3118.9,3118.6,0.00568423]
[1642600505532,1.23226621,3118.9,3118.7,1.37267801]
[1642600505933,1.23226621,3118.9,3118.8,3.00454738]
[1642600506403,4.78286,3119.1,3118.8,0.00454738]
[1642600506591,1.6033637,3119.1,3118.8,0.00454738]
[1642600506794,0.80166,3119.1,3118.7,0.00511581]
[1642600506997,0.1282,3119.4,3118.8,2.17550614]
[1642600507196,5.0611,3119.5,3118.9,1.83387614]
[1642600507395,5.0611,3119.5,3119.0,1.37387614]
[1642600507600,1.45618969,3119.4,3119.0,1.83728668]
[1642600507796,1.45618969,3119.4,3119.1,0.00284211]
[1642600509501,2.25780969,3119.4,3119.1,0.00284211]
[1642600510324,2.25780969,3119.4,3118.8,1.3792515]
[1642600510528,2.25780969,3119.4,3118.9,1.37868308]
[1642600510727,2.25780969,3119.4,3119.0,2.17631412]
[1642600510926,2.25780969,3119.4,3119.0,0.80502054]
[1642600511127,2.25780969,3119.4,3119.1,0.00284211]
[1642600511528,1.45618969,3119.4,3119.1,0.00284211]
[1642600511928,1.45618969,3119.4,3119.0,2.17720323]
[1642600512127,1.45618969,3119.4,3119.0,0.00341054]
[1642600512327,1.45618969,3119.4,3119.1,0.00284211]
[1642600512527,1.45618969,3119.4,3118.9,1.37967127]
[1642600512736,1.45618969,3119.4,3118.8,1.68637]
[1642600512737,1.45618969,3119.4,3119.0,0.00341054]
[1642600513233,2.25780969,3119.4,3119.0,0.00341054]
[1642600514075,2.25780969,3119.4,3118.9,0.00397896]
[1642600514675,2.25780969,3119.4,3119.0,1.37794991]
[1642600514975,2.25780969,3119.4,3118.8,2.86108656]
[1642600514976,1.45618969,3119.4,3119.1,1.38079202]
[1642600515177,1.45618969,3119.4,3119.1,0.00284211]
[1642600515381,1.45618969,3119.4,3119.2,0.00227369]
[1642600515677,1.45618969,3119.4,3119.0,0.00341054]
[1642600516077,1.45618969,3119.4,3119.1,0.80156]
[1642600516479,1.45618969,3119.4,3119.2,1.38114243]
[1642600516678,1.45618969,3119.4,3119.3,1.37886874]
[1642600517282,1.45618969,3119.4,3119.2,0.00227369]
[1642600517484,0.80157,3119.5,3119.2,0.00227369]
[1642600517745,1.6031703,3119.5,3119.0,2.18385928]
[1642600517939,1.6031703,3119.5,3119.1,1.38171085]
[1642600517940,0.80157,3119.5,3119.1,1.38171085]
[1642600518337,0.80157,3119.5,3119.2,0.00227369]
[1642600519036,1.92364793,3119.5,3119.2,0.00227369]
[1642600520338,2.72527213,3119.5,3119.2,0.00227369]
[1642600520541,2.72527213,3119.5,3119.2,1.38114243]
[1642600520542,1.27744122,3119.4,3119.2,1.38114243]
[1642600520740,1.27744122,3119.4,3119.2,0.00227369]
[1642600521140,0.80163,3119.4,3119.0,1.38586888]
[1642600521380,0.80163,3119.4,3119.1,0.00284211]
[1642600521581,1.92370213,3119.5,3119.1,0.00284211]
[1642600521782,1.12207793,3119.5,3119.1,0.00284211]
[1642600523186,1.12207793,3119.5,3119.1,2.82114992]
[1642600523386,1.12207793,3119.5,3119.2,2.18400834]
[1642600523588,1.12207793,3119.5,3119.3,1.38245834]
[1642600523785,1.2789174,3119.4,3119.3,1.38245834]
[1642600523988,1.12207793,3119.5,3119.3,1.38245834]
[1642600524189,5.65849,3119.9,3119.4,2.83221107]
[1642600524190,4.0553,3119.9,3119.4,2.83221107]
[1642600524392,1.28034103,3119.8,3119.5,1.92572834]
[1642600524592,1.2258542,3119.7,3119.6,6.2896156]
[1642600524789,0.00113685,3119.8,3119.6,6.8752156]
[1642600524991,0.00113685,3119.8,3119.7,6.1896156]
[1642600525231,0.00113685,3119.8,3119.7,12.53212414]
[1642600525437,0.00113685,3119.8,3119.7,12.41132414]
[1642600525634,0.00113685,3119.8,3119.7,9.33538206]
[1642600526640,0.00113685,3119.8,3119.7,8.23631865]
[1642600526835,0.00113685,3119.8,3119.7,1.9828856]
[1642600527637,0.00113685,3119.8,3119.7,1.8996156]
[1642600528340,1.5258305,3119.8,3119.7,1.8996156]
[1642600528535,2.75147344,3119.8,3119.7,1.8996156]
[1642600530186,2.75147344,3119.8,3119.4,0.00113684]
[1642600530485,1.22564294,3119.7,3119.4,1.45525382]
[1642600530684,1.22564294,3119.6,3119.5,1.45411698]
[1642600531184,1.22564294,3119.6,3119.4,0.00113684]
[1642600531383,1.5258305,3119.8,3119.4,0.00113684]
[1642600531585,0.8016,3119.7,3119.3,1.45411698]
[1642600531787,2.0634054,3119.7,3119.4,1.45411698]
[1642600531999,2.0634054,3119.7,3119.5,1.45411698]
[1642600532284,2.0634054,3119.7,3119.3,0.00170527]
[1642600532765,0.8015787,3119.6,3119.1,1.45770185]
[1642600532964,0.8015787,3119.6,3119.2,0.00227369]
[1642600533666,1.5258305,3119.8,3119.2,0.80379369]
[1642600533864,1.5258305,3119.8,3119.3,1.45485974]
[1642600534063,1.5258305,3119.8,3119.4,1.45485974]
[1642600534362,1.5258305,3119.8,3119.3,0.00170527]
[1642600534363,1.5258305,3119.8,3119.5,1.45485974]
[1642600534562,1.17458833,3119.7,3119.6,1.45485974]
[1642600534763,1.17458833,3119.7,3119.3,0.00170527]
[1642600535162,1.17458833,3119.7,3119.3,1.45656501]
[1642600535366,1.5258305,3119.8,3119.3,1.45656501]
[1642600535764,0.8015654,3119.7,3119.3,1.45656501]
[1642600535962,0.8015654,3119.7,3119.4,1.45485974]
[1642600536168,0.8015654,3119.7,3119.5,1.45485974]
[1642600536380,2.3000795,3119.7,3119.3,0.00170527]
[1642600536678,2.3000795,3119.7,3119.1,1.45808817]
[1642600536879,0.8015654,3119.7,3119.1,1.45808817]
[1642600537082,0.8015654,3119.7,3119.2,0.00227369]
[1642600537587,1.5258305,3119.8,3119.2,3.63585467]
[1642600537887,1.5258305,3119.8,3119.3,1.54022133]
[1642600538087,1.5258305,3119.8,3119.4,1.45524606]
[1642600538691,1.5258305,3119.8,3119.5,1.45524606]
[1642600538888,1.5258305,3119.8,3119.6,1.45524606]
[1642600539087,1.5258305,3119.8,3119.7,1.45524606]
[1642600539790,0.00113685,3119.8,3119.7,1.45524606]
[1642600539990,0.00113685,3119.8,3119.5,1.45524606]
[1642600540232,0.00113685,3119.8,3119.6,1.45524606]
[1642600540432,0.00113685,3119.8,3119.7,1.45524606]
[1642600540833,0.00113685,3119.8,3119.5,1.45524606]
[1642600542136,1.40078966,3119.8,3119.5,1.45524606]
[1642600546185,1.40078966,3119.8,3119.6,1.45524606]
[1642600546383,1.21104452,3119.7,3119.3,0.80319527]
[1642600546587,1.21104452,3119.7,3119.4,1.45680098]
[1642600549035,1.21104452,3119.7,3119.4,2.25829098]
[1642600549240,1.21104452,3119.7,3119.5,1.45680098]
[1642600550237,0.00113685,3119.8,3119.5,4.25805194]
[1642600550439,0.00113685,3119.8,3119.6,1.45680098]
[1642600550641,1.2349,3120.2,3119.9,1.60298]
[1642600550838,0.1282,3120.4,3120.0,0.3]
[1642600551037,0.1282,3120.4,3119.9,1.90298]
[1642600551038,0.00170527,3120.1,3119.9,1.90298]
[1642600551484,0.00113685,3120.0,3119.9,1.90298]
[1642600552283,0.00113685,3120.0,3119.9,4.72882389]
[1642600552686,0.00113685,3120.0,3119.9,5.57209389]
[1642600553690,0.00113685,3120.0,3119.9,6.37346389]
[1642600553887,0.1282,3120.4,3120.0,5.65]
[1642600554089,0.1282,3120.4,3120.1,3.53966876]
[1642600554287,0.1282,3120.4,3120.1,3.83966876]
[1642600554288,0.00170527,3120.3,3120.1,3.83966876]
[1642600554787,0.00113684,3120.2,3120.1,4.64096876]
[1642600555231,0.00113684,3120.2,3120.1,5.98372854]
[1642600555432,0.00113684,3120.2,3120.1,6.78499854]
[1642600555833,0.00113684,3120.2,3120.1,6.86826854]
[1642600557435,0.00113684,3120.2,3120.1,7.16826854]
[1642600558341,0.00113684,3120.2,3120.1,10.66826854]
[1642600558540,1.54766897,3121.2,3120.8,1.10400677]
[1642600558743,1.54766897,3121.2,3120.8,0.80122]
[1642600558987,0.00511582,3121.1,3120.8,0.80122]
[1642600559390,0.00454739,3121.0,3120.8,0.80122]
[1642600559597,0.00454739,3121.0,3120.8,1.10122]
[1642600559793,0.00397897,3120.9,3120.8,6.60236]
[1642600559994,0.00397897,3120.9,3120.8,9.753799]
[1642600560191,0.00397897,3120.9,3120.8,6.98563]
[1642600560392,0.00397897,3120.9,3120.8,7.44563]
[1642600560990,0.00397897,3120.9,3120.8,9.9619595]
[1642600561395,2.75526897,3121.7,3120.9,2.5]
[1642600561705,0.00397896,3121.6,3121.0,2.70324]
[1642600561894,0.00397896,3121.6,3121.1,2.92422656]
[1642600562101,0.00341054,3121.5,3121.1,2.92422656]
[1642600562496,0.00284212,3121.4,3121.2,0.46]
[1642600562739,0.00284212,3121.4,3121.3,2.83264459]
[1642600562939,1.2076,3121.7,3121.3,3.59264459]
[1642600563140,1.54766897,3122.0,3121.5,1.36699392]
[1642600563341,0.00397896,3121.6,3121.5,1.36699392]
[1642600564241,0.00397896,3121.6,3121.5,1.66699392]
[1642600564441,0.00397896,3121.6,3121.5,4.60177794]
[1642600564651,0.00397896,3121.6,3121.5,5.14504794]
[1642600564845,1.54766897,3122.3,3121.6,6.45]
[1642600565050,9.37380276,3122.6,3121.6,6.45]
[1642600565051,3.772,3122.6,3121.7,0.46]
[1642600565343,0.00341054,3122.2,3121.7,3.55777]
[1642600565543,0.00341054,3122.2,3121.9,0.80075]
[1642600565744,0.00284212,3122.1,3122.0,3.19987511]
[1642600565945,0.00284212,3122.1,3122.0,3.58302511]
[1642600566145,0.00682108,3122.1,3122.0,3.58302511]
[1642600566897,0.00682108,3122.1,3122.0,5.18450511]
[1642600567401,0.00682108,3122.1,3122.0,8.28450511]
[1642600568403,0.00682108,3122.1,3122.0,5.18450511]
[1642600569404,0.00682108,3122.1,3122.0,7.63450511]
[1642600570432,0.058449,3123.0,3122.2,0.80068]
[1642600570734,0.058449,3123.0,3122.5,0.80067]
[1642600570735,1.12973123,3122.9,3122.5,0.80067]
[1642600571132,1.12973123,3122.9,3122.6,0.00113684]
[1642600571739,1.12973123,3122.9,3122.5,1.34558079]
[1642600572137,1.12973123,3122.9,3122.6,0.00113684]
[1642600572540,1.12973123,3122.9,3122.6,0.80187684]
[1642600573146,0.058449,3123.0,3122.8,5.63315]
[1642600573443,0.058449,3123.0,3122.9,4.76]
[1642600573884,0.05958585,3123.0,3122.9,4.76]
[1642600574288,1.1679,3123.7,3123.0,4.45]
[1642600574489,1.1679,3123.7,3123.1,3.611439]
[1642600574691,0.00341054,3123.6,3123.1,0.46]
[1642600575093,0.00284212,3123.5,3123.1,0.46]
[1642600575287,0.00284212,3123.5,3123.2,2.69796935]
[1642600575487,1.1278237,3124.0,3123.9,1.35674548]
[1642600575692,1.1278237,3124.0,3123.6,0.46]
[1642600575693,3.7778237,3124.0,3123.6,0.46]
[1642600575892,1.13293951,3123.9,3123.6,0.46]
[1642600576090,1.1278237,3123.8,3123.6,0.46]
[1642600576290,0.00454739,3123.8,3123.6,0.46]
[1642600576490,0.00397897,3123.7,3123.6,2.06084]
[1642600579739,0.00397897,3123.7,3123.6,4.87242845]
[1642600580540,0.00397897,3123.7,3123.6,2.06084]
[1642600581785,0.00397897,3123.7,3123.6,4.86370185]
[1642600582990,0.00397897,3123.7,3123.6,5.16370185]
[1642600583787,0.00397897,3123.7,3123.6,2.06084]
[1642600583986,0.00397897,3123.7,3123.6,4.89851113]
[1642600584290,0.14072339,3124.5,3123.7,5.5]
[1642600584291,0.128,3124.5,3123.7,5.5]
[1642600584488,0.128,3124.5,3123.9,2.4006]
[1642600584686,0.128,3124.5,3124.0,4.59315]
[1642600584886,0.128,3124.5,3124.1,2.5]
[1642600585147,0.00170527,3124.4,3124.2,0.46]
[1642600585336,0.00170527,3124.4,3124.3,0.46]
[1642600585640,0.128,3124.8,3124.1,1.60029]
[1642600585641,0.00113685,3124.3,3124.1,1.60029]
[1642600586135,0.00341054,3124.7,3124.1,1.90029]
[1642600586334,0.00341054,3124.7,3124.3,0.80027]
[1642600586537,0.00284212,3124.6,3124.3,0.80027]
[1642600586739,0.00284212,3124.6,3124.3,1.10027]
[1642600586935,1.15847232,3124.9,3124.3,1.10027]
[1642600586936,0.00227369,3124.5,3124.3,1.10027]
[1642600587335,0.00397896,3124.8,3124.3,1.10027]
[1642600587637,0.00341054,3124.7,3124.3,0.80027]
[1642600588039,0.00284212,3124.6,3124.3,0.80027]
[1642600588440,0.00227369,3124.5,3124.3,0.80027]
[1642600588885,1.04663787,3124.8,3124.3,0.80027]
[1642600589083,0.00397896,3124.8,3124.3,1.10027]
[1642600589285,0.00341054,3124.7,3124.3,1.10027]
[1642600589687,0.00284212,3124.6,3124.3,1.10027]
[1642600590089,1.22796563,3124.4,3124.3,1.10027]
[1642600590691,1.22796563,3124.4,3124.3,0.13903603]
[1642600591490,1.22796563,3124.4,3124.3,0.93930603]
[1642600592292,1.22796563,3124.4,3124.3,0.13903603]
[1642600592492,1.22796563,3124.4,3124.1,1.60071]
[1642600592742,1.22796563,3124.4,3124.1,1.90071]
[1642600592944,0.00113685,3124.3,3124.1,0.3]
[1642600598290,0.00113685,3124.3,3123.7,1.60089]
[1642600598494,0.14068224,3124.2,3123.7,0.80053]
[1642600598695,0.01268224,3124.2,3123.8,0.00170527]
[1642600599293,0.128,3124.1,3123.8,0.00170527]
[1642600599591,0.128,3124.1,3123.7,0.00227369]
[1642600599791,0.128,3124.1,3123.8,0.80049]
[1642600599995,0.00113685,3124.3,3123.9,3.42640366]
[1642600600239,0.00113685,3124.3,3124.0,1.34337]
[1642600600838,0.00113685,3124.3,3124.0,1.26022]
[1642600601138,0.00113685,3124.3,3124.2,1.45719107]
[1642600601341,0.00113685,3124.3,3124.2,1.91719107]
[1642600601739,1.2678,3125.2,3124.3,5.1]
[1642600601740,0.128,3125.2,3124.3,5.1]
[1642600601945,0.128,3125.2,3124.5,0.09662086]
[1642600602145,0.00341054,3124.9,3124.7,1.5233219]
[1642600602344,0.00341054,3124.9,3124.8,0.46]
[1642600602542,0.90906156,3125.6,3124.9,0.8001]
[1642600602743,0.90906156,3125.6,3125.0,0.80012]
[1642600602941,0.91645106,3125.6,3125.0,0.80012]
[1642600603143,0.90906156,3125.5,3125.0,0.80012]
[1642600603542,0.00625265,3125.4,3125.0,0.80012]
[1642600603744,1.54666106,3125.2,3125.0,0.80012]
[1642600603996,1.54666106,3125.2,3124.6,0.80033]
[1642600603997,0.90884883,3125.1,3124.6,0.80033]
[1642600604194,0.128,3125.0,3124.6,0.80033]
[1642600604392,0.90884883,3124.9,3124.6,0.80033]
[1642600604592,0.00341054,3124.9,3124.6,0.80033]
[1642600604795,0.00284211,3124.8,3124.6,0.80033]
[1642600605192,0.00227369,3124.7,3124.6,0.80033]
[1642600605392,0.00227369,3124.7,3124.5,1.60056]
[1642600605592,0.00341054,3124.7,3124.5,1.60056]
[1642600605792,0.00170527,3124.6,3124.5,1.60056]
[1642600610747,0.00170527,3124.6,3124.5,1.55056]
[1642600612185,0.89942718,3124.6,3124.5,1.55056]
[1642600612387,0.00170527,3124.6,3124.5,1.55056]
[1642600612687,1.21515115,3124.6,3124.5,1.55056]
[1642600612889,2.11287306,3124.6,3124.5,1.55056]
[1642600614992,0.89942718,3124.6,3124.5,1.55056]
[1642600615640,0.89942718,3124.6,3124.5,4.64144365]
[1642600615838,0.89942718,3124.6,3124.5,1.85056]
[1642600616039,0.00170527,3124.6,3124.5,5.88611078]
[1642600616240,0.00170527,3124.6,3124.5,3.04233847]
[1642600616839,0.00170527,3124.6,3124.5,5.8233155]
[1642600617043,0.00170527,3124.6,3124.5,3.04233847]
[1642600617241,0.00170527,3124.6,3124.5,5.82607222]
[1642600617443,0.00170527,3124.6,3124.5,3.04233847]
[1642600618247,0.00170527,3124.6,3124.5,5.83701185]
[1642600618446,0.00170527,3124.6,3124.5,5.85071141]
[1642600618647,0.00170527,3124.6,3124.5,3.04233847]
[1642600619083,0.89942718,3124.6,3124.5,3.04233847]
[1642600619588,0.00170527,3124.6,3124.5,3.04233847]
[1642600620288,0.00170527,3124.6,3124.5,1.55056]
[1642600621291,0.89942718,3124.6,3124.5,1.55056]
[1642600621491,1.20148495,3124.6,3124.5,1.55056]
[1642600621690,2.09920686,3124.6,3124.5,1.55056]
[1642600622289,0.89942718,3124.6,3124.5,1.55056]
[1642600622940,0.00170527,3124.6,3124.5,1.55056]
[1642600625244,0.89942718,3124.6,3124.5,1.55056]
[1642600625443,0.00170527,3124.6,3124.5,1.55056]
[1642600625645,0.89942718,3124.6,3124.5,1.55056]
[1642600627089,0.89942718,3124.6,3124.4,1.60064]
[1642600627490,0.00113684,3124.5,3124.4,1.60064]
[1642600628389,0.89885875,3124.5,3124.4,1.60064]
[1642600628590,0.00113684,3124.5,3124.4,1.60064]
[1642600629594,2.44539088,3124.6,3124.2,1.60085]
[1642600629595,2.36125806,3124.6,3124.2,1.60085]
[1642600629798,0.128,3124.5,3123.9,0.80169685]
[1642600629996,1.28918716,3124.3,3123.9,0.80056]
[1642600630240,0.89772191,3124.2,3123.9,0.80056]
[1642600630440,0.89772191,3124.1,3123.9,0.80056]
[1642600630640,0.89772191,3124.0,3123.9,0.80056]
[1642600630838,1.28918716,3124.3,3123.9,0.80056]
[1642600630839,0.89772191,3124.2,3123.9,0.80056]
[1642600631039,0.89772191,3124.1,3123.9,0.80397054]
[1642600631440,1.41718716,3124.3,3123.9,0.80397054]
[1642600631441,0.89772191,3124.0,3123.9,0.80397054]
[1642600631639,0.89772191,3124.2,3123.9,0.80397054]
[1642600632040,0.89772191,3124.2,3124.0,0.00284211]
[1642600632451,2.21773766,3124.3,3124.0,0.00284211]
[1642600632646,0.9053237,3124.2,3124.1,0.3]
[1642600633045,0.9053237,3124.2,3124.1,0.30227369]
[1642600633444,0.128,3124.6,3124.2,0.80044]
[1642600633894,0.128,3124.6,3124.3,0.00113684]
[1642600634288,2.28033331,3124.5,3124.3,0.00113684]
[1642600634488,4.428,3124.4,3124.3,0.00113684]
[1642600635391,4.428,3124.4,3124.2,0.00170527]
[1642600638040,0.128,3124.4,3124.2,1.60262527]
[1642600638342,0.128,3124.4,3124.3,0.00113684]
[1642600638541,2.628,3124.4,3124.3,0.00113684]
[1642600638840,4.20570004,3124.4,3124.3,0.00113684]
[1642600639242,1.70570004,3124.4,3124.3,0.00113684]
[1642600639442,0.128,3124.4,3124.3,0.00113684]
[1642600639641,1.70570004,3124.5,3124.3,0.00113684]
[1642600640042,1.70570004,3124.7,3124.3,0.00113684]
[1642600640442,1.70683689,3124.7,3124.3,0.00113684]
[1642600641045,1.70683689,3124.7,3124.4,1.24409093]
[1642600641401,1.70683689,3124.7,3124.4,2.84491093]
[1642600641795,0.00113685,3124.7,3124.5,3.42640366]
[1642600641995,0.00113685,3124.7,3124.5,0.6]
[1642600642193,0.00113685,3124.7,3124.5,0.3]
[1642600642595,0.00113685,3124.7,3124.5,1.10033]
[1642600642800,0.00113685,3124.7,3124.6,3.51]
[1642600642997,0.00113685,3124.7,3124.6,3.81]
[1642600643196,1.57770004,3125.2,3124.7,1.18511381]
[1642600643397,1.57770004,3125.2,3124.8,0.46]
[1642600643598,0.00227369,3125.1,3124.8,0.76]
[1642600643799,0.00227369,3125.1,3124.8,4.72231806]
[1642600644000,12.0359,3125.7,3124.8,4.72231806]
[1642600644001,0.00170527,3125.0,3124.9,1.80737516]
[1642600644201,2.32110276,3126.0,3125.1,0.06741194]
[1642600644399,4.0993,3126.1,3125.2,0.46]
[1642600644400,6.29240276,3126.1,3125.2,0.46]
[1642600644600,3.9713,3126.1,3125.9,2.73546654]
[1642600644799,3.60180276,3126.2,3125.9,3.53542654]
[1642600645003,2.44900276,3126.2,3125.9,3.83542654]
[1642600645241,0.00625266,3126.1,3125.9,3.83542654]
[1642600645645,0.00568424,3126.0,3125.9,3.83542654]
[1642600646442,3.40568424,3126.0,3125.9,2.38736086]
[1642600647446,0.00568424,3126.0,3125.9,3.5717104]
[1642600648751,0.72673119,3126.0,3125.9,2.38736086]
[1642600649024,0.72673119,3126.0,3125.9,1.09996]
[1642600653252,0.1279,3126.4,3125.9,4.49996]
[1642600653446,4.7917,3126.8,3126.1,0.79983]
[1642600653447,0.1279,3126.7,3126.1,0.79983]
[1642600653647,0.00170527,3126.3,3126.1,0.79983]
[1642600653845,0.00170527,3126.3,3126.2,0.3]
[1642600654045,0.1279,3126.7,3126.2,0.3]
[1642600654252,0.1279,3126.7,3126.5,1.3771059]
[1642600654447,0.00341054,3126.6,3126.5,0.6294954]
[1642600654650,0.00341054,3126.6,3126.5,1.3894954]
[1642600654846,0.00341054,3126.6,3126.5,4.60021284]
[1642600655247,1.57817986,3127.7,3126.7,0.04908751]
[1642600655450,2.44900276,3128.0,3127.5,1.16754462]
[1642600655451,3.3779,3127.6,3127.5,1.16754462]
[1642600655650,3.25,3127.6,3127.5,1.46754462]
[1642600655853,0.1278,3127.9,3127.5,1.46754462]
[1642600656049,0.1278,3127.9,3127.5,1.76754462]
[1642600656249,0.00682108,3127.8,3127.5,1.76754462]
[1642600656490,0.00682108,3127.8,3127.2,0.46]
[1642600656691,0.00625265,3127.7,3127.5,1.59912]
[1642600656894,0.00625265,3127.7,3127.5,1.89912]
[1642600657092,0.00568423,3127.6,3127.5,1.89912]
[1642600658297,0.00568423,3127.6,3127.5,1.59912]
[1642600662543,0.00568423,3127.6,3127.2,0.46]
[1642600662744,0.00568423,3127.6,3127.0,1.59942]
[1642600662745,0.92772,3127.5,3127.0,1.59942]
[1642600662941,0.93283581,3127.5,3127.0,1.59942]
[1642600663141,0.00454738,3127.4,3127.0,1.59942]
[1642600663340,0.1279,3127.3,3127.0,1.59942]
[1642600663542,1.11610825,3127.2,3127.0,1.59942]
[1642600663899,1.11610825,3127.2,3126.7,1.59958]
[1642600663900,0.13074211,3127.1,3126.7,1.59958]
[1642600664294,0.00227369,3127.0,3126.7,1.59958]
[1642600664495,0.1279,3126.9,3126.7,1.59958]
[1642600664698,0.12960527,3126.9,3126.7,1.59958]
[1642600664896,0.00113684,3126.8,3126.7,1.59958]
[1642600668951,1.10079045,3126.7,3126.5,1.59978]
[1642600670648,0.1279,3126.6,3126.5,1.59978]
[1642600671494,1.10079045,3126.7,3126.5,1.59978]
[1642600671690,1.22869045,3126.7,3126.5,1.59978]
[1642600673794,1.00079045,3126.7,3126.5,1.59978]
[1642600676845,0.58237793,3126.6,3126.5,1.59978]
[1642600677045,0.58237793,3126.6,3126.4,1.59987]
[1642600677244,1.92870045,3126.7,3126.4,1.59987]
[1642600677445,0.58245121,3126.6,3126.4,1.59987]
[1642600677845,1.12869045,3126.7,3126.4,1.59987]
[1642600678044,0.56468341,3126.6,3126.4,1.59987]
[1642600680192,1.00079045,3126.7,3126.4,2.3998124]
[1642600680392,1.00079045,3126.7,3126.4,2.6998124]
[1642600680693,0.55576075,3126.6,3126.4,2.3998124]
[1642600684170,0.00113684,3126.8,3126.5,0.79988]
[1642600684473,0.49184612,3126.8,3126.5,0.79988]
[1642600684869,0.00113684,3126.8,3126.5,0.79988]
[1642600685470,0.00113684,3126.8,3126.5,0.69988]
[1642600685669,0.00113684,3126.8,3126.6,0.7998653]
[1642600685869,0.00113684,3126.8,3126.5,0.69988]
[1642600686069,0.00113684,3126.8,3126.4,1.59987]
[1642600686070,0.1279,3126.7,3126.3,0.8]
[1642600686268,0.49070928,3126.6,3126.3,0.8]
[1642600686499,0.49070928,3126.6,3126.4,0.00113685]
[1642600686900,6.92182105,3126.5,3126.4,0.00113685]
[1642600687105,7.54043033,3126.5,3126.4,0.00113685]
[1642600687303,7.41253033,3126.5,3126.4,0.00113685]
[1642600688106,1.76253033,3126.5,3126.4,0.00113685]
[1642600688907,4.41253033,3126.5,3126.4,0.00113685]
[1642600689908,4.41253033,3126.5,3126.4,0.80105255]
[1642600690545,4.41253033,3126.5,3126.4,0.00113685]
[1642600691951,7.11253033,3126.5,3126.4,0.00113685]
[1642600692353,4.41253033,3126.5,3126.4,0.00113685]
[1642600693652,3.86904101,3126.7,3126.5,0.05163277]
[1642600693653,0.1279,3126.7,3126.5,0.05163277]
[1642600694092,0.07674,3127.0,3126.6,0.00113684]
[1642600694294,1.54159994,3126.9,3126.6,0.00113684]
[1642600694493,2.34157994,3126.9,3126.4,0.00227369]
[1642600694901,1.49962365,3126.8,3126.4,0.00227369]
[1642600695099,0.1279,3126.7,3126.4,0.00227369]
[1642600696700,0.92791,3126.7,3126.4,0.00227369]
[1642600699656,0.1279,3126.7,3126.4,0.00227369]
[1642600699957,1.62752365,3126.8,3126.4,0.00227369]
[1642600700957,0.80001,3126.7,3126.4,0.00227369]
[1642600702099,1.62752365,3126.8,3126.4,0.00227369]
[1642600702499,0.1279,3126.8,3126.4,0.00227369]
[1642600702704,1.70041909,3126.8,3126.4,0.00227369]
[1642600702900,0.1279,3126.7,3126.4,1.22697006]
[1642600703101,0.1279,3126.7,3126.5,0.11279712]
[1642600703302,0.1279,3127.0,3126.5,0.00568424]
[1642600703501,0.1279,3127.0,3126.6,0.00511581]
[1642600703701,1.27685163,3126.7,3126.5,0.00568424]
[1642600704301,1.44326628,3126.6,3126.4,0.00625266]
[1642600704701,1.44326628,3126.6,3126.2,0.00738951]
[1642600705357,0.1279,3126.5,3126.2,0.00738951]
[1642600705552,0.1279,3126.5,3125.9,0.00909478]
[1642600705851,0.1279,3126.5,3125.5,0.01136847]
[1642600706051,1.53618127,3125.6,3125.5,0.01136847]
[1642600706652,1.53618127,3125.6,3125.3,0.01250532]
[1642600707055,0.29106678,3128.3,3125.3,0.01250532]
[1642600707357,1.27003319,3126.1,3125.5,0.01292956]
[1642600707759,1.27003319,3126.1,3125.6,0.01080005]
[1642600708756,0.80019,3126.0,3125.6,0.01080005]
[1642600709426,1.43572399,3125.7,3125.6,0.01080005]
[1642600709725,0.1279,3125.9,3125.5,0.01136847]
[1642600710531,0.1279,3126.0,3125.5,0.01136847]
[1642600710729,0.1279,3126.5,3125.6,0.80002]
[1642600710929,0.1279,3126.8,3125.6,1.2237]
[1642600711127,2.48536377,3126.8,3125.7,3.39152655]
[1642600711530,1.24952148,3126.7,3125.9,1.22248994]
[1642600711725,0.1279,3126.6,3126.1,0.79999]